fUST/lending_fUST_20240830
["ID","MTS","AMOUNT","RATE_DAILY","PERIOD"]
[336627556,1724979042478,-153.0,0.00019417,2]
[336627557,1724979042488,-153.0,0.00019417,2]
[336627558,1724979042498,-153.0,0.00019417,2]
[336627559,1724979042508,-153.0,0.00019417,2]
[336627561,1724979042517,-153.0,0.00019417,2]
[336627562,1724979042527,-153.0,0.00019417,2]
[336627563,1724979042536,-153.0,0.00019417,2]
[336627564,1724979042545,-153.0,0.00019417,2]
[336627565,1724979042556,-153.0,0.00019417,2]
[336627566,1724979042568,-153.0,0.00019417,2]
[336627567,1724979042577,-153.0,0.00019417,2]
[336627568,1724979042587,-153.0,0.00019417,2]
[336627569,1724979042596,-313.0,0.00019417,2]
[336627570,1724979042606,-313.0,0.00019417,2]
[336627571,1724979042615,-313.0,0.00019417,2]
[336627572,1724979042625,-313.0,0.00019417,2]
[336627573,1724979042634,-313.0,0.00019417,2]
[336627574,1724979042644,-313.0,0.00019417,2]
[336627575,1724979042654,-313.0,0.00019417,2]
[336627576,1724979042663,-313.0,0.00019417,2]
[336627577,1724979042672,-313.0,0.00019417,2]
[336627579,1724979042681,-313.0,0.00019417,2]
[336627581,1724979042690,-313.0,0.00019417,2]
[336627582,1724979042702,-313.0,0.00019417,2]
[336627583,1724979042711,-313.0,0.00019417,2]
[336627584,1724979042721,-313.0,0.00019417,2]
[336627585,1724979042731,-313.0,0.00019417,2]
[336627587,1724979042740,-153.0,0.00019417,2]
[336627588,1724979042749,-153.0,0.00019417,2]
[336627589,1724979042758,-153.0,0.00019417,2]
[336627590,1724979042768,-153.0,0.00019417,2]
[336627591,1724979042779,-153.0,0.00019417,2]
[336627592,1724979042788,-153.0,0.00019417,2]
[336627593,1724979042797,-153.0,0.00019417,2]
[336627594,1724979042806,-153.0,0.00019417,2]
[336627595,1724979042815,-153.0,0.00019417,2]
[336627596,1724979042824,-153.0,0.00019417,2]
[336627597,1724979042836,-153.0,0.00019417,2]
[336627598,1724979042846,-153.0,0.00019417,2]
[336627599,1724979042856,-153.0,0.00019417,2]
[336627600,1724979042866,-313.0,0.00019417,2]
[336627601,1724979042877,-313.0,0.00019417,2]
[336627602,1724979042888,-313.0,0.00019417,2]
[336627603,1724979042897,-313.0,0.00019417,2]
[336627604,1724979042906,-313.0,0.00019417,2]
[336627605,1724979042915,-313.0,0.00019417,2]
[336627606,1724979042924,-313.0,0.00019417,2]
[336627607,1724979042933,-313.0,0.00019417,2]
[336627608,1724979042942,-313.0,0.00019417,2]
[336627609,1724979042951,-313.0,0.00019417,2]
[336627610,1724979042960,-313.0,0.00019417,2]
[336627611,1724979042969,-313.0,0.00019417,2]
[336627612,1724979042981,-313.0,0.00019417,2]
[336627613,1724979042990,-313.0,0.00019417,2]
[336627614,1724979043000,-153.0,0.00019417,2]
[336627615,1724979043009,-153.0,0.00019417,2]
[336627616,1724979043019,-153.0,0.00019417,2]
[336627617,1724979043028,-153.0,0.00019417,2]
[336627618,1724979043037,-153.0,0.00019417,2]
[336627619,1724979043046,-153.0,0.00019417,2]
[336627620,1724979043055,-153.0,0.00019417,2]
[336627621,1724979043065,-153.0,0.00019417,2]
[336627622,1724979043074,-153.0,0.00019417,2]
[336627623,1724979043084,-153.0,0.00019417,2]
[336627624,1724979043093,-153.0,0.00019417,2]
[336627625,1724979043102,-153.0,0.00019417,2]
[336627626,1724979043111,-153.0,0.00019417,2]
[336627628,1724979043120,-153.0,0.00019417,2]
[336627629,1724979043130,-313.0,0.00019417,2]
[336627630,1724979043139,-313.0,0.00019417,2]
[336627631,1724979043150,-313.0,0.00019417,2]
[336627632,1724979043161,-313.0,0.00019417,2]
[336627634,1724979043170,-313.0,0.00019417,2]
[336627635,1724979043179,-313.0,0.00019417,2]
[336627637,1724979043188,-313.0,0.00019417,2]
[336627639,1724979043198,-313.0,0.00019417,2]
[336627641,1724979043209,-313.0,0.00019417,2]
[336627643,1724979043220,-313.0,0.00019417,2]
[336627645,1724979043231,-313.0,0.00019417,2]
[336627646,1724979043240,-313.0,0.00019417,2]
[336627647,1724979043250,-313.0,0.00019417,2]
[336627648,1724979043261,-313.0,0.00019417,2]
[336627649,1724979043271,-150.01,0.00019441,2]
[336627650,1724979043280,-1504.4307093,0.00019441,2]
[336627651,1724979043289,-151.0,0.00019441,2]
[336627652,1724979043298,-8774.14591746,0.00019442,2]
[336627653,1724979043307,-501.30329718,0.00019452,2]
[336627654,1724979043317,-436.69807068,0.00019452,2]
[336627655,1724979043327,-500.0,0.00019452,2]
[336627656,1724979043335,-500.0,0.00019452,2]
[336627657,1724979043345,-500.0,0.00019452,2]
[336627658,1724979043354,-500.0,0.00019452,2]
[336627659,1724979043363,-500.0,0.00019452,2]
[336627660,1724979043373,-500.0,0.00019452,2]
[336627661,1724979043382,-500.0,0.00019452,2]
[336627662,1724979043392,-500.0,0.00019452,2]
[336627663,1724979043401,-323.05766005,0.00019452,2]
[336627664,1724979043411,-500.0,0.00019452,2]
[336627665,1724979043421,-410.03,0.00019452,2]
[336627666,1724979043430,-500.0,0.00019452,2]
[336627667,1724979043440,-500.0,0.00019452,2]
[336627668,1724979043451,-500.0,0.00019452,2]
[336627669,1724979043460,-500.0,0.00019452,2]
[336627670,1724979043470,-194.52757306,0.00019452,2]
[336627671,1724979043481,-864.52,0.00019452,2]
[336627672,1724979043490,-500.0,0.00019452,2]
[336627673,1724979043500,-500.0,0.00019452,2]
[336627674,1724979043509,-500.0,0.00019452,2]
[336627675,1724979043519,-500.0,0.00019452,2]
[336627676,1724979043528,-500.0,0.00019452,2]
[336627677,1724979043538,-500.0,0.00019452,2]
[336627678,1724979043547,-591.65871831,0.00019452,2]
[336627679,1724979043556,-298.807784,0.00019452,2]
[336627680,1724979043568,-500.0,0.00019452,2]
[336627681,1724979043577,-529.74,0.00019452,2]
[336627682,1724979043587,-500.0,0.00019452,2]
[336627683,1724979043596,-500.0,0.00019452,2]
[336627684,1724979043606,-500.0,0.00019452,2]
[336627685,1724979043615,-995.38,0.00019452,2]
[336627686,1724979043625,-500.0,0.00019452,2]
[336627687,1724979043635,-500.0,0.00019452,2]
[336627688,1724979043644,-370.84300898,0.00019452,2]
[336627689,1724979043653,-537.26,0.00019452,2]
[336627690,1724979043662,-500.0,0.00019452,2]
[336627691,1724979043671,-500.0,0.00019452,2]
[336627692,1724979043680,-500.0,0.00019452,2]
[336627693,1724979043690,-450.75840837,0.00019452,2]
[336627694,1724979043704,-49.24159163,0.00019452,2]
[336627695,1724979043713,-500.0,0.00019452,2]
[336627696,1724979043723,-922.04,0.00019452,2]
[336627698,1724979043734,-504.08,0.00019452,2]
[336627699,1724979043743,-500.0,0.00019452,2]
[336627701,1724979043752,-500.0,0.00019452,2]
[336627703,1724979043761,-500.0,0.00019452,2]
[336627705,1724979043770,-500.0,0.00019452,2]
[336627707,1724979043780,-500.0,0.00019452,2]
[336627709,1724979043790,-500.0,0.00019452,2]
[336627710,1724979043800,-500.0,0.00019452,2]
[336627712,1724979043810,-500.0,0.00019452,2]
[336627713,1724979043946,-500.0,0.00019452,2]
[336627714,1724979043956,-500.0,0.00019452,2]
[336627715,1724979043966,-500.0,0.00019452,2]
[336627716,1724979043975,-500.0,0.00019452,2]
[336627717,1724979043984,-500.0,0.00019452,2]
[336627718,1724979043994,-500.0,0.00019452,2]
[336627719,1724979044004,-500.0,0.00019452,2]
[336627720,1724979044013,-765.74,0.00019452,2]
[336627721,1724979044022,-500.0,0.00019452,2]
[336627722,1724979044032,-500.0,0.00019452,2]
[336627723,1724979044041,-500.0,0.00019452,2]
[336627724,1724979044051,-500.0,0.00019452,2]
[336627725,1724979044060,-500.0,0.00019452,2]
[336627726,1724979044069,-500.0,0.00019452,2]
[336627727,1724979044078,-995.59,0.00019452,2]
[336627728,1724979044087,-500.0,0.00019452,2]
[336627729,1724979044097,-500.0,0.00019452,2]
[336627730,1724979044106,-500.0,0.00019452,2]
[336627731,1724979044115,-500.0,0.00019452,2]
[336627732,1724979044125,-633.1,0.00019452,2]
[336627733,1724979044134,-736.28,0.00019452,2]
[336627734,1724979044143,-302.74506878,0.00019452,2]
[336627735,1724979044152,-500.5,0.00019452,2]
[336627736,1724979044161,-796.49,0.00019452,2]
[336627737,1724979044170,-337.54783341,0.00019452,2]
[336627738,1724979044179,-500.0,0.00019452,2]
[336627739,1724979044189,-502.28,0.00019452,2]
[336627740,1724979044199,-500.0,0.00019452,2]
[336627741,1724979044208,-626.84049778,0.00019452,2]
[336627742,1724979044217,-500.0,0.00019452,2]
[336627743,1724979044228,-151.0,0.00019452,2]
[336627744,1724979044242,-151.0,0.00019452,2]
[336627745,1724979044251,-151.0,0.00019452,2]
[336627746,1724979044260,-500.0,0.00019452,2]
[336627747,1724979044270,-500.0,0.00019452,2]
[336627748,1724979044283,-500.0,0.00019452,2]
[336627749,1724979044293,-500.0,0.00019452,2]
[336627750,1724979044303,-578.8846606,0.00019452,2]
[336627751,1724979044312,-500.0,0.00019452,2]
[336627752,1724979044321,-500.0,0.00019452,2]
[336627753,1724979044330,-2192.1,0.00019452,2]
[336627754,1724979044340,-389.36,0.00019452,2]
[336627755,1724979044349,-151.0,0.00019452,2]
[336627756,1724979044358,-151.0,0.00019452,2]
[336627757,1724979044367,-151.0,0.00019452,2]
[336627758,1724979044377,-500.0,0.00019452,2]
[336627759,1724979044386,-500.0,0.00019452,2]
[336627760,1724979044396,-500.0,0.00019452,2]
[336627761,1724979044406,-8755.75,0.00019452,2]
[336627762,1724979044416,-423.55996739,0.00019452,2]
[336627763,1724979044425,-525.71,0.00019452,2]
[336627764,1724979044434,-600.96,0.00019452,2]
[336627765,1724979044444,-500.0,0.00019452,2]
[336627766,1724979044455,-200.0,0.00019452,2]
[336627767,1724979044464,-500.0,0.00019452,2]
[336627768,1724979044475,-956.46467812,0.00019452,2]
[336627769,1724979044600,-1017.72000827,0.00019452,2]
[336627784,1724979046097,-792.48,0.00019178,2]
[336627785,1724979046107,-32.96531361,0.00019452,2]
[336627786,1724979046117,-500.0,0.00019452,2]
[336627787,1724979046126,-500.0,0.00019452,2]
[336627788,1724979046135,-415.66554335,0.00019452,2]
[336627796,1724979316151,1000.0,0.00016,5]
[336627803,1724979916065,30000.0,0.00025,120]
[336627805,1724979930691,167.567016,0.00014247,2]
[336627806,1724980013191,-199.45891937,0.00018,6]
[336627880,1724980238246,-301.33108063,0.00018,6]
[336627881,1724980238256,-192.540155,0.00018018,2]
[336627882,1724980238265,-600.0,0.00018603,2]
[336627883,1724980238275,-600.0,0.00018867,2]
[336627884,1724980238284,-465.00082741,0.00018927,2]
[336627885,1724980238299,-390.2638818,0.00019078,2]
[336627886,1724980238311,-56.83754493,0.00019078,2]
[336627887,1724980238320,-5000.0,0.00019121,2]
[336627888,1724980238329,-600.0,0.00019134,2]
[336627889,1724980238339,-300.0,0.00019176,2]
[336627890,1724980238350,-500.0,0.00019177,2]
[336627891,1724980238360,-500.0,0.00019177,2]
[336627892,1724980238369,-500.0,0.00019177,2]
[336627893,1724980238379,-500.0,0.00019177,2]
[336627894,1724980238388,-500.0,0.00019177,2]
[336627895,1724980238398,-500.0,0.00019177,2]
[336627896,1724980238408,-500.0,0.00019177,2]
[336627897,1724980238419,-500.0,0.00019177,2]
[336627898,1724980238430,-438.50861444,0.00019177,2]
[336627899,1724980238439,-500.0,0.00019177,2]
[336627900,1724980238449,-500.0,0.00019177,2]
[336627901,1724980238460,-390.89221435,0.00019177,2]
[336627902,1724980238469,-273.3543625,0.00019178,2]
[336627903,1724980238480,-500.0,0.00019178,2]
[336627904,1724980238491,-500.0,0.00019178,2]
[336627905,1724980238502,-500.0,0.00019178,2]
[336627906,1724980238513,-500.0,0.00019178,2]
[336627907,1724980238523,-500.0,0.00019178,2]
[336627908,1724980238534,-500.0,0.00019178,2]
[336627909,1724980238545,-500.0,0.00019178,2]
[336627910,1724980238557,-500.0,0.00019178,2]
[336627911,1724980238567,-500.0,0.00019178,2]
[336627912,1724980238578,-500.0,0.00019178,2]
[336627913,1724980238589,-500.0,0.00019178,2]
[336627914,1724980238599,-500.0,0.00019178,2]
[336627915,1724980238610,-500.0,0.00019178,2]
[336627916,1724980238620,-500.0,0.00019178,2]
[336627917,1724980238631,-500.0,0.00019178,2]
[336627918,1724980238642,-500.0,0.00019178,2]
[336627919,1724980238653,-500.0,0.00019178,2]
[336627920,1724980238663,-500.0,0.00019178,2]
[336627921,1724980238675,-500.0,0.00019178,2]
[336627922,1724980238686,-500.0,0.00019178,2]
[336627923,1724980238696,-606.73,0.00019178,2]
[336627924,1724980238706,-500.0,0.00019178,2]
[336627925,1724980238715,-500.0,0.00019178,2]
[336627926,1724980238727,-323.20362188,0.00019178,2]
[336627927,1724980238741,-500.5,0.00019178,2]
[336627928,1724980238750,-337.54783341,0.00019178,2]
[336627929,1724980238761,-500.0,0.00019178,2]
[336627930,1724980238771,-1271.49,0.00019178,2]
[336627931,1724980238782,-500.0,0.00019178,2]
[336627932,1724980238793,-500.0,0.00019178,2]
[336627933,1724980238804,-500.0,0.00019178,2]
[336627934,1724980238816,-500.0,0.00019178,2]
[336627935,1724980238826,-500.0,0.00019178,2]
[336627936,1724980238837,-578.8846606,0.00019178,2]
[336627937,1724980238847,-500.0,0.00019178,2]
[336627938,1724980238860,-626.84049778,0.00019178,2]
[336627939,1724980238870,-500.0,0.00019178,2]
[336627940,1724980238881,-500.0,0.00019178,2]
[336627941,1724980238890,-500.0,0.00019178,2]
[336627942,1724980238900,-500.0,0.00019178,2]
[336627943,1724980238909,-500.0,0.00019178,2]
[336627944,1724980238924,-500.0,0.00019178,2]
[336627945,1724980238934,-500.0,0.00019178,2]
[336627946,1724980238943,-500.0,0.00019178,2]
[336627947,1724980238953,-493.2831385,0.00019178,2]
[336627948,1724980238966,-500.0,0.00019178,2]
[336627949,1724980238975,-912.43,0.00019178,2]
[336627950,1724980238985,-500.0,0.00019178,2]
[336627951,1724980238995,-390.45972078,0.00019178,2]
[336627952,1724980239006,-500.0,0.00019178,2]
[336627953,1724980239016,-500.0,0.00019178,2]
[336627954,1724980239026,-500.0,0.00019178,2]
[336627955,1724980239036,-500.0,0.00019178,2]
[336627956,1724980239046,-500.0,0.00019178,2]
[336627957,1724980239056,-500.0,0.00019178,2]
[336627958,1724980239066,-500.0,0.00019178,2]
[336627959,1724980239075,-500.0,0.00019178,2]
[336627960,1724980239085,-200.0,0.00019178,2]
[336627961,1724980239096,-500.0,0.00019178,2]
[336627962,1724980239106,-500.0,0.00019178,2]
[336627963,1724980239116,-500.0,0.00019178,2]
[336627964,1724980239125,-584.33445665,0.00019178,2]
[336627965,1724980239136,-500.0,0.00019178,2]
[336627966,1724980239146,-500.0,0.00019178,2]
[336627967,1724980239159,-883.62,0.00019178,2]
[336627968,1724980239173,-500.0,0.00019178,2]
[336627969,1724980239183,-500.0,0.00019178,2]
[336627970,1724980239193,-500.0,0.00019178,2]
[336627971,1724980239203,-500.0,0.00019178,2]
[336627972,1724980239214,-471.61556285,0.00019178,2]
[336627973,1724980239224,-500.0,0.00019178,2]
[336627974,1724980239234,-571.54931738,0.00019178,2]
[336627975,1724980239243,-500.0,0.00019178,2]
[336627976,1724980239253,-500.0,0.00019178,2]
[336627977,1724980239263,-500.0,0.00019178,2]
[336627978,1724980239273,-500.0,0.00019178,2]
[336627979,1724980239283,-500.0,0.00019178,2]
[336627980,1724980239293,-500.0,0.00019178,2]
[336627981,1724980239302,-500.0,0.00019178,2]
[336627982,1724980239314,-500.0,0.00019178,2]
[336627983,1724980239324,-500.0,0.00019178,2]
[336627984,1724980239334,-500.0,0.00019178,2]
[336627985,1724980239344,-500.0,0.00019178,2]
[336627986,1724980239353,-500.0,0.00019178,2]
[336627987,1724980239363,-500.0,0.00019178,2]
[336627988,1724980239373,-500.0,0.00019178,2]
[336627989,1724980239383,-500.0,0.00019178,2]
[336627990,1724980239392,-462.36139297,0.00019178,2]
[336627991,1724980239402,-500.0,0.00019178,2]
[336627992,1724980239412,-500.0,0.00019178,2]
[336627993,1724980239423,-500.0,0.00019178,2]
[336627994,1724980239432,-500.0,0.00019178,2]
[336627995,1724980239442,-500.0,0.00019178,2]
[336627996,1724980239452,-733.84,0.00019178,2]
[336627997,1724980239461,-185.41766373,0.00019178,2]
[336627998,1724980239471,-500.0,0.00019178,2]
[336627999,1724980239480,-500.0,0.00019178,2]
[336628000,1724980239490,-500.0,0.00019178,2]
[336628001,1724980239500,-500.0,0.00019178,2]
[336628002,1724980239510,-500.0,0.00019178,2]
[336628003,1724980239519,-954.1,0.00019178,2]
[336628004,1724980239529,-500.0,0.00019178,2]
[336628005,1724980239539,-500.0,0.00019178,2]
[336628006,1724980239549,-500.0,0.00019178,2]
[336628007,1724980239559,-500.0,0.00019178,2]
[336628008,1724980239568,-500.0,0.00019178,2]
[336628009,1724980239578,-586.75239976,0.00019178,2]
[336628010,1724980239589,-500.0,0.00019178,2]
[336628011,1724980239598,-466.91803791,0.00019178,2]
[336628012,1724980239608,-305.96956731,0.00019178,2]
[336628013,1724980239617,-535.81319626,0.00019178,2]
[336628014,1724980239634,-500.0,0.00019178,2]
[336628015,1724980239647,-705.6,0.00019178,2]
[336628016,1724980239657,-500.0,0.00019178,2]
[336628017,1724980239667,-500.0,0.00019178,2]
[336628018,1724980239677,-500.95808177,0.00019178,2]
[336628019,1724980239687,-503.9384888,0.00019178,2]
[336628020,1724980239696,-763.3,0.00019178,2]
[336628021,1724980239706,-569.0060436,0.00019178,2]
[336628022,1724980239716,-500.0,0.00019178,2]
[336628023,1724980239725,-502.28,0.00019178,2]
[336628024,1724980239735,-500.0,0.00019178,2]
[336628025,1724980239744,-500.0,0.00019178,2]
[336628026,1724980239753,-2247.31,0.00019178,2]
[336628027,1724980239762,-500.0,0.00019178,2]
[336628028,1724980239772,-500.0,0.00019178,2]
[336628030,1724980239782,-500.0,0.00019178,2]
[336628031,1724980239792,-500.0,0.00019178,2]
[336628032,1724980239802,-500.0,0.00019178,2]
[336628033,1724980239812,-2100.77,0.00019178,2]
[336628034,1724980239822,-389.36,0.00019178,2]
[336628035,1724980239831,-524.71,0.00019178,2]
[336628036,1724980239841,-500.0,0.00019178,2]
[336628038,1724980239850,-500.0,0.00019178,2]
[336628040,1724980239859,-525.71,0.00019178,2]
[336628041,1724980239869,-550.47,0.00019178,2]
[336628042,1724980239878,-500.0,0.00019178,2]
[336628043,1724980239887,-2403.84,0.00019178,2]
[336628045,1724980239897,-500.0,0.00019178,2]
[336628046,1724980239906,-8591.91,0.00019178,2]
[336628048,1724980239915,-500.0,0.00019178,2]
[336628049,1724980239925,-500.0,0.00019178,2]
[336628050,1724980239935,-313.0004084,0.00019178,2]
[336628055,1724980240256,-186.9995916,0.00019178,2]
[336628056,1724980240268,-500.0,0.00019178,2]
[336628057,1724980240278,-1963.37,0.00019178,2]
[336628058,1724980240289,-647.31,0.00019178,2]
[336628059,1724980240299,-500.0,0.00019178,2]
[336628060,1724980240309,-500.0,0.00019178,2]
[336628061,1724980240319,-500.0,0.00019178,2]
[336628062,1724980240329,-500.0,0.00019178,2]
[336628063,1724980240340,-500.0,0.00019178,2]
[336628064,1724980240352,-500.0,0.00019178,2]
[336628065,1724980240363,-607.66,0.00019178,2]
[336628066,1724980240376,-762.74,0.00019178,2]
[336628067,1724980240387,-500.0,0.00019178,2]
[336628068,1724980240398,-500.0,0.00019178,2]
[336628069,1724980240407,-500.0,0.00019178,2]
[336628070,1724980240418,-1076.27,0.00019178,2]
[336628071,1724980240430,-500.0,0.00019178,2]
[336628072,1724980240444,-500.0,0.00019178,2]
[336628073,1724980240455,-500.0,0.00019178,2]
[336628074,1724980240466,-500.0,0.00019178,2]
[336628075,1724980240478,-305.83,0.00019178,2]
[336628076,1724980240488,-1722.82,0.00019178,2]
[336628077,1724980240499,-500.0,0.00019178,2]
[336628078,1724980240508,-604.91,0.00019178,2]
[336628079,1724980240519,-500.0,0.00019178,2]
[336628080,1724980240531,-500.0,0.00019178,2]
[336628081,1724980240542,-500.0,0.00019178,2]
[336628082,1724980240553,-500.0,0.00019178,2]
[336628083,1724980240563,-500.0,0.00019178,2]
[336628084,1724980240574,-500.0,0.00019178,2]
[336628085,1724980240584,-500.0,0.00019178,2]
[336628086,1724980240595,-500.0,0.00019178,2]
[336628087,1724980240606,-500.0,0.00019178,2]
[336628088,1724980240618,-535.18,0.00019178,2]
[336628089,1724980240628,-500.0,0.00019178,2]
[336628090,1724980240638,-785.92,0.00019178,2]
[336628091,1724980240648,-500.0,0.00019178,2]
[336628092,1724980240659,-500.0,0.00019178,2]
[336628093,1724980240671,-500.0,0.00019178,2]
[336628094,1724980240683,-507.26,0.00019178,2]
[336628095,1724980240694,-500.0,0.00019178,2]
[336628096,1724980240706,-500.0,0.00019178,2]
[336628097,1724980240715,-814.38,0.00019178,2]
[336628098,1724980240727,-500.0,0.00019178,2]
[336628099,1724980240738,-500.0,0.00019178,2]
[336628100,1724980240750,-500.0,0.00019178,2]
[336628101,1724980240759,-3039.49,0.00019178,2]
[336628102,1724980240771,-500.0,0.00019178,2]
[336628103,1724980240780,-500.0,0.00019178,2]
[336628104,1724980240793,-2062.64,0.00019178,2]
[336628105,1724980240806,-585.79,0.00019178,2]
[336628106,1724980240817,-500.0,0.00019178,2]
[336628107,1724980240827,-5006.8,0.00019178,2]
[336628108,1724980240838,-1702.51,0.00019178,2]
[336628109,1724980240848,-500.0,0.00019178,2]
[336628110,1724980240858,-385.85217683,0.00019178,2]
[336628111,1724980240867,-517.3,0.00019178,2]
[336628112,1724980240876,-500.0,0.00019178,2]
[336628113,1724980240886,-330.99093765,0.00019178,2]
[336628118,1724980243258,-23.07175249,0.00019178,2]
[336628138,1724980556896,159.188665,0.00014247,2]
[336628189,1724981438650,-178.571428,0.00018191,2]
[336628190,1724981438661,-178.571428,0.00018349,2]
[336628191,1724981438670,-1000.0,0.0001848,2]
[336628192,1724981438680,-178.571428,0.00018507,2]
[336628193,1724981438690,-354.383618,0.0001863,2]
[336628194,1724981438700,-178.571428,0.00018665,2]
[336628195,1724981438711,-207.8243323,0.000187,2]
[336628196,1724981438721,-409.4593805,0.000187,2]
[336628197,1724981438732,-414.5118867,0.000187,2]
[336628198,1724981438743,-210.1941753,0.000187,2]
[336628199,1724981438753,-178.571428,0.00018823,2]
[336628200,1724981438763,-178.571428,0.00018981,2]
[336628201,1724981438774,-300.0,0.00018999,2]
[336628202,1724981438785,-326.5498648,0.00019,2]
[336628203,1724981438796,-364.3068475,0.00019,2]
[336628204,1724981438807,-306.0,0.00019,2]
[336628205,1724981438817,-153.0,0.00019,2]
[336628206,1724981438827,-207.8243323,0.00019,2]
[336628207,1724981438837,-409.4593805,0.00019,2]
[336628208,1724981438847,-6105.25014756,0.00019,2]
[336628209,1724981438857,-207.8243323,0.00019034,2]
[336628210,1724981438870,-207.8243323,0.00019034,2]
[336628211,1724981438879,-207.8243323,0.00019034,2]
[336628212,1724981438891,-325.8282027,0.00019034,2]
[336628213,1724981438900,-391.21374838,0.00019078,2]
[336628214,1724981438910,-178.571428,0.00019139,2]
[336628215,1724981438919,-500.0,0.00019177,2]
[336628216,1724981438929,-438.50861444,0.00019177,2]
[336628217,1724981438938,-500.0,0.00019177,2]
[336628218,1724981438949,-500.0,0.00019177,2]
[336628219,1724981438958,-500.0,0.00019177,2]
[336628220,1724981438967,-500.0,0.00019177,2]
[336628221,1724981438977,-500.0,0.00019177,2]
[336628222,1724981438987,-500.0,0.00019177,2]
[336628223,1724981438996,-500.0,0.00019177,2]
[336628224,1724981439181,-500.0,0.00019177,2]
[336628225,1724981439191,-500.0,0.00019177,2]
[336628226,1724981439201,-390.89221435,0.00019177,2]
[336628227,1724981439210,-1500.02865352,0.00019178,5]
[336628228,1724981439219,-273.3543625,0.00019178,2]
[336628229,1724981439229,-500.0,0.00019178,2]
[336628230,1724981439239,-626.84049778,0.00019178,2]
[336628231,1724981439250,-578.8846606,0.00019178,2]
[336628232,1724981439260,-500.0,0.00019178,2]
[336628233,1724981439269,-500.0,0.00019178,2]
[336628234,1724981439279,-500.0,0.00019178,2]
[336628235,1724981439290,-500.0,0.00019178,2]
[336628236,1724981439299,-500.0,0.00019178,2]
[336628237,1724981439307,-500.0,0.00019178,2]
[336628238,1724981439317,-500.0,0.00019178,2]
[336628239,1724981439326,-493.2831385,0.00019178,2]
[336628240,1724981439335,-500.0,0.00019178,2]
[336628241,1724981439346,-500.0,0.00019178,2]
[336628242,1724981439355,-500.0,0.00019178,2]
[336628243,1724981439367,-500.0,0.00019178,2]
[336628244,1724981439377,-500.0,0.00019178,2]
[336628245,1724981439386,-500.0,0.00019178,2]
[336628246,1724981439396,-390.45972078,0.00019178,2]
[336628247,1724981439407,-500.0,0.00019178,2]
[336628248,1724981439416,-500.0,0.00019178,2]
[336628249,1724981439427,-500.0,0.00019178,2]
[336628250,1724981439437,-500.0,0.00019178,2]
[336628251,1724981439449,-200.0,0.00019178,2]
[336628252,1724981439459,-500.0,0.00019178,2]
[336628253,1724981439468,-500.0,0.00019178,2]
[336628254,1724981439478,-584.33445665,0.00019178,2]
[336628255,1724981439488,-500.0,0.00019178,2]
[336628256,1724981439497,-500.0,0.00019178,2]